[Event "Late-Titled-Tuesday-Blitz-May-28-2024"]
[Site "Chess.com"]
[Date "2024.05.28"]
[Round "3"]
[White "ritanovikova"]
[Black "ploxoi"]
[Result "0-1"]
[WhiteElo "2164"]
[BlackElo "2411"]
[TimeControl "180+1"]
[EndTime "14:29:38 PDT"]
[Termination "ploxoi won by checkmate"]

1. e4 {[%clk 0:02:51.8]} 1... c6 {[%clk 0:02:58.2]} 2. d4 {[%clk 0:02:11]} 2...
d5 {[%clk 0:02:56.2]} 3. Nd2 {[%clk 0:02:10.6]} 3... dxe4 {[%clk 0:02:55.4]} 4.
Nxe4 {[%clk 0:02:11.5]} 4... Nf6 {[%clk 0:02:55.8]} 5. Nxf6+ {[%clk 0:02:11.5]}
5... exf6 {[%clk 0:02:56.7]} 6. Nf3 {[%clk 0:02:11.4]} 6... Bd6 {[%clk
0:02:56.2]} 7. Be2 {[%clk 0:02:11.5]} 7... O-O {[%clk 0:02:55.9]} 8. Be3 {[%clk
0:02:11.6]} 8... Re8 {[%clk 0:02:55.6]} 9. c3 {[%clk 0:02:11.6]} 9... Nd7 {[%clk
0:02:53.8]} 10. O-O {[%clk 0:02:10.3]} 10... Nf8 {[%clk 0:02:53.3]} 11. Qc2
{[%clk 0:02:09.1]} 11... Be6 {[%clk 0:02:50.3]} 12. Rad1 {[%clk 0:02:05.2]}
12... Qc7 {[%clk 0:02:48.5]} 13. c4 {[%clk 0:02:00.4]} 13... Bg4 {[%clk
0:02:44.3]} 14. g3 {[%clk 0:01:54.9]} 14... Ng6 {[%clk 0:02:37.3]} 15. Kg2
{[%clk 0:01:50.8]} 15... b6 {[%clk 0:02:28.2]} 16. Ng1 {[%clk 0:01:50.2]} 16...
Bxe2 {[%clk 0:02:26]} 17. Qxe2 {[%clk 0:01:50.6]} 17... f5 {[%clk 0:02:04.7]}
18. Qf3 {[%clk 0:01:50.4]} 18... f4 {[%clk 0:02:02.5]} 19. Bc1 {[%clk
0:01:50.2]} 19... Qd7 {[%clk 0:01:50.6]} 20. Ne2 {[%clk 0:01:43.1]} 20... fxg3
{[%clk 0:01:43.6]} 21. hxg3 {[%clk 0:01:41.4]} 21... Re7 {[%clk 0:01:42.3]} 22.
Nf4 {[%clk 0:01:36.5]} 22... Bxf4 {[%clk 0:01:41.3]} 23. Bxf4 {[%clk 0:01:36.3]}
23... Rae8 {[%clk 0:01:37.7]} 24. d5 {[%clk 0:01:28.9]} 24... cxd5 {[%clk
0:01:36.3]} 25. Rxd5 {[%clk 0:01:28.2]} 25... Qa4 {[%clk 0:01:34.5]} 26. a3
{[%clk 0:01:20.9]} 26... Qxc4 {[%clk 0:01:31.3]} 27. Rf5 {[%clk 0:01:15]} 27...
h6 {[%clk 0:01:17.3]} 28. Bd6 {[%clk 0:01:14.2]} 28... Re1 {[%clk 0:01:09.8]}
29. Rxe1 {[%clk 0:01:08.2]} 29... Rxe1 {[%clk 0:01:10.7]} 30. Bb4 {[%clk
0:00:50.2]} 30... Rb1 {[%clk 0:00:40.4]} 31. Bc3 {[%clk 0:00:42.8]} 31... Qf1+
{[%clk 0:00:37.5]} 32. Kh2 {[%clk 0:00:43.1]} 32... Qg1+ {[%clk 0:00:32.5]} 33.
Kh3 {[%clk 0:00:43.3]} 33... f6 {[%clk 0:00:23]} 34. Qd5+ {[%clk 0:00:37.4]}
34... Kh7 {[%clk 0:00:20.7]} 35. Bxf6 {[%clk 0:00:28]} 35... Qf1+ {[%clk
0:00:10.1]} 36. Kh2 {[%clk 0:00:26.2]} 36... Qg1+ {[%clk 0:00:05.8]} 37. Kh3
{[%clk 0:00:26]} 37... Qf1+ {[%clk 0:00:06.2]} 38. Kg4 {[%clk 0:00:23.9]} 38...
Qe2+ {[%clk 0:00:04.2]} 39. f3 {[%clk 0:00:23.7]} 39... Rh1 {[%clk 0:00:01]} 40.
Bxg7 {[%clk 0:00:20.4]} 40... Kxg7 {[%clk 0:00:00.7]} 41. Qd7+ {[%clk
0:00:20.1]} 41... Qe7 {[%clk 0:00:00.6]} 42. Qxe7+ {[%clk 0:00:20.3]} 42... Nxe7
{[%clk 0:00:01.5]} 43. Re5 {[%clk 0:00:19.7]} 43... h5+ {[%clk 0:00:02]} 44. Kg5
{[%clk 0:00:18.7]} 44... Kf7 {[%clk 0:00:01.7]} 45. Re2 {[%clk 0:00:18]} 45...
Ng6 {[%clk 0:00:02.1]} 46. f4 {[%clk 0:00:18.2]} 46... Ne7 {[%clk 0:00:02.4]}
47. f5 {[%clk 0:00:18.4]} 47... Rg1 {[%clk 0:00:02.9]} 48. Kf4 {[%clk 0:00:18]}
48... Rf1+ {[%clk 0:00:03.1]} 49. Kg5 {[%clk 0:00:18.2]} 49... Rg1 {[%clk
0:00:03.4]} 50. Kxh5 {[%clk 0:00:17.4]} 50... Rxg3 {[%clk 0:00:02.7]} 51. Kh4
{[%clk 0:00:17.1]} 51... Nxf5+ {[%clk 0:00:02.1]} 52. Kh5 {[%clk 0:00:17.6]}
52... Kf6 {[%clk 0:00:02.7]} 53. Rc2 {[%clk 0:00:17.2]} 53... Rg5# {[%clk
0:00:03.1]} 0-1

[Event "Late-Titled-Tuesday-Blitz-May-28-2024"]
[Site "Chess.com"]
[Date "2024.05.28"]
[Round "3"]
[White "katharinareinecke"]
[Black "Nechitaylo_Nikita"]
[Result "0-1"]
[WhiteElo "1935"]
[BlackElo "2330"]
[TimeControl "180+1"]
[EndTime "14:29:39 PDT"]
[Termination "Nechitaylo_Nikita won on time"]

1. d4 {[%clk 0:03:00.9]} 1... Nf6 {[%clk 0:03:00]} 2. Nf3 {[%clk 0:03:00.2]}
2... e6 {[%clk 0:03:00.3]} 3. g3 {[%clk 0:02:59.7]} 3... c5 {[%clk 0:03:00]} 4.
Bg2 {[%clk 0:02:59.2]} 4... Nc6 {[%clk 0:03:00]} 5. O-O {[%clk 0:02:57.1]} 5...
cxd4 {[%clk 0:02:58.4]} 6. Nxd4 {[%clk 0:02:56.7]} 6... d5 {[%clk 0:02:59.1]} 7.
c4 {[%clk 0:02:53.3]} 7... Bc5 {[%clk 0:02:58.7]} 8. e3 {[%clk 0:02:45.2]} 8...
O-O {[%clk 0:02:56]} 9. Nc3 {[%clk 0:02:40.8]} 9... Bxd4 {[%clk 0:02:46.7]} 10.
exd4 {[%clk 0:02:36.1]} 10... dxc4 {[%clk 0:02:47.1]} 11. Be3 {[%clk 0:02:21.2]}
11... Nd5 {[%clk 0:02:36.5]} 12. Qa4 {[%clk 0:02:13.1]} 12... Nb6 {[%clk
0:01:43.5]} 13. Qc2 {[%clk 0:02:01.1]} 13... Nb4 {[%clk 0:01:42.1]} 14. Qe2
{[%clk 0:01:55.6]} 14... Qc7 {[%clk 0:01:23.6]} 15. Bf4 {[%clk 0:01:40.4]} 15...
Qd8 {[%clk 0:01:15.2]} 16. Nb5 {[%clk 0:01:34]} 16... N4d5 {[%clk 0:01:00.2]}
17. Be5 {[%clk 0:00:37.1]} 17... a6 {[%clk 0:00:58.6]} 18. Nd6 {[%clk
0:00:28.9]} 18... f6 {[%clk 0:00:58.7]} 19. Nxc8 {[%clk 0:00:27.3]} 19... Rxc8
{[%clk 0:00:56.4]} 20. Bf4 {[%clk 0:00:11.3]} 20... Re8 {[%clk 0:00:49.2]} 21.
Be3 {[%clk 0:00:08.1]} 21... c3 {[%clk 0:00:34.9]} 22. b3 {[%clk 0:00:06.3]}
22... e5 {[%clk 0:00:17.5]} 23. Qd3 {[%clk 0:00:04.5]} 23... e4 {[%clk
0:00:10.1]} 24. Qd1 {[%clk 0:00:03.9]} 24... c2 {[%clk 0:00:07.4]} 25. Qd2
{[%clk 0:00:03.1]} 25... Nxe3 {[%clk 0:00:05.1]} 26. fxe3 {[%clk 0:00:02.9]}
26... Nd5 {[%clk 0:00:04.2]} 27. Rac1 {[%clk 0:00:02.8]} 27... Qc7 {[%clk
0:00:04.8]} 28. Rf2 {[%clk 0:00:02.5]} 28... Qc3 {[%clk 0:00:05]} 29. Rxc2
{[%clk 0:00:02.2]} 29... Qxc2 {[%clk 0:00:03.6]} 30. Qxc2 {[%clk 0:00:02.5]}
30... Rxc2 {[%clk 0:00:03]} 31. Rxc2 {[%clk 0:00:02.6]} 31... Nxe3 {[%clk
0:00:03.5]} 32. Rc7 {[%clk 0:00:02.9]} 32... f5 {[%clk 0:00:02]} 33. Rxb7 {[%clk
0:00:02.9]} 33... Rd8 {[%clk 0:00:02.6]} 34. Ra7 {[%clk 0:00:01]} 34... Rxd4
{[%clk 0:00:02.5]} 35. Rxa6 {[%clk 0:00:01.3]} 35... Rd2 {[%clk 0:00:02.6]} 36.
Bh3 {[%clk 0:00:01]} 36... Rd1+ {[%clk 0:00:01.5]} 37. Kf2 {[%clk 0:00:00.7]}
37... Nc2 {[%clk 0:00:01.5]} 38. Bxf5 {[%clk 0:00:00.8]} 38... e3+ {[%clk
0:00:02.1]} 39. Kf3 {[%clk 0:00:00.7]} 39... Rf1+ {[%clk 0:00:01.8]} 40. Ke4
{[%clk 0:00:01]} 40... Rf2 {[%clk 0:00:01.5]} 41. Be6+ {[%clk 0:00:01.3]} 41...
Kf8 {[%clk 0:00:01.4]} 42. Ra8+ {[%clk 0:00:01.6]} 42... Ke7 {[%clk 0:00:01.9]}
43. Ke5 {[%clk 0:00:01.3]} 43... e2 {[%clk 0:00:02.4]} 44. Ra7+ {[%clk
0:00:01.2]} 44... Kd8 {[%clk 0:00:02.9]} 45. Ra8+ {[%clk 0:00:01]} 45... Kc7
{[%clk 0:00:03.3]} 46. Rc8+ {[%clk 0:00:01.2]} 46... Kb7 {[%clk 0:00:03.8]} 47.
Rxc2 {[%clk 0:00:01]} 47... e1=Q+ {[%clk 0:00:04.5]} 48. Kd6 {[%clk 0:00:01.1]}
48... Rxc2 {[%clk 0:00:05.1]} 49. Bd7 {[%clk 0:00:00.9]} 49... Qd2+ {[%clk
0:00:05]} 50. Ke7 {[%clk 0:00:01.1]} 50... Rc7 {[%clk 0:00:05.2]} 0-1

[Event "Late-Titled-Tuesday-Blitz-May-28-2024"]
[Site "Chess.com"]
[Date "2024.05.28"]
[Round "3"]
[White "Shuvalov"]
[Black "Hirna2005"]
[Result "1-0"]
[WhiteElo "2558"]
[BlackElo "2361"]
[TimeControl "180+1"]
[EndTime "14:29:44 PDT"]
[Termination "Shuvalov won by resignation"]

1. d4 {[%clk 0:02:51.5]} 1... g6 {[%clk 0:03:00.1]} 2. c4 {[%clk 0:02:51]} 2...
Bg7 {[%clk 0:02:58.3]} 3. Nf3 {[%clk 0:02:51.2]} 3... d6 {[%clk 0:02:58]} 4. Nc3
{[%clk 0:02:50.9]} 4... Bg4 {[%clk 0:02:56.4]} 5. Qb3 {[%clk 0:02:48.4]} 5... b6
{[%clk 0:02:55.2]} 6. e3 {[%clk 0:02:41.1]} 6... Nf6 {[%clk 0:02:53.3]} 7. Be2
{[%clk 0:02:40.6]} 7... O-O {[%clk 0:02:52.1]} 8. h3 {[%clk 0:02:40.2]} 8... Bd7
{[%clk 0:02:51.8]} 9. O-O {[%clk 0:02:39.2]} 9... c5 {[%clk 0:02:51]} 10. Qd1
{[%clk 0:02:36.7]} 10... Nc6 {[%clk 0:02:48.4]} 11. b3 {[%clk 0:02:34.8]} 11...
Bf5 {[%clk 0:02:37.2]} 12. Bb2 {[%clk 0:02:34.3]} 12... Ne4 {[%clk 0:02:35.5]}
13. Nxe4 {[%clk 0:02:31.7]} 13... Bxe4 {[%clk 0:02:35.4]} 14. Nd2 {[%clk
0:02:31]} 14... Bf5 {[%clk 0:02:33.2]} 15. Bf3 {[%clk 0:02:30.2]} 15... Rc8
{[%clk 0:02:31.5]} 16. Nb1 {[%clk 0:02:12]} 16... cxd4 {[%clk 0:02:23.5]} 17.
exd4 {[%clk 0:02:11.1]} 17... Nb4 {[%clk 0:02:21.9]} 18. Na3 {[%clk 0:02:07]}
18... Nd3 {[%clk 0:02:12.1]} 19. Bc3 {[%clk 0:02:06.1]} 19... Nf4 {[%clk
0:02:01.3]} 20. Nc2 {[%clk 0:01:47.1]} 20... e5 {[%clk 0:01:54.9]} 21. dxe5
{[%clk 0:01:43]} 21... dxe5 {[%clk 0:01:55]} 22. Ne3 {[%clk 0:01:41.4]} 22...
Bd3 {[%clk 0:01:49.9]} 23. Re1 {[%clk 0:01:35.7]} 23... e4 {[%clk 0:01:49.8]}
24. Bxg7 {[%clk 0:01:32.5]} 24... Kxg7 {[%clk 0:01:40.6]} 25. Bg4 {[%clk
0:01:29]} 25... f5 {[%clk 0:01:40.7]} 26. g3 {[%clk 0:01:28.2]} 26... fxg4
{[%clk 0:01:33.5]} 27. gxf4 {[%clk 0:01:28.3]} 27... gxh3 {[%clk 0:01:32.6]} 28.
Nd5 {[%clk 0:01:24.6]} 28... Qh4 {[%clk 0:01:22.8]} 29. Re3 {[%clk 0:01:07.4]}
29... Rf5 {[%clk 0:01:13.3]} 30. Rg3 {[%clk 0:01:01.8]} 30... Rd8 {[%clk
0:00:52.5]} 31. Kh2 {[%clk 0:01:00.7]} 31... Rh5 {[%clk 0:00:49.1]} 32. Qd2
{[%clk 0:00:56.9]} 32... Rd6 {[%clk 0:00:33.3]} 33. Re1 {[%clk 0:00:55.1]} 33...
Qd8 {[%clk 0:00:28.2]} 34. Qc3+ {[%clk 0:00:49.2]} 34... Kf7 {[%clk 0:00:25.7]}
35. Ree3 {[%clk 0:00:48.3]} 35... Rdxd5 {[%clk 0:00:21.1]} 36. cxd5 {[%clk
0:00:47.9]} 36... Rxd5 {[%clk 0:00:21.2]} 37. Rxh3 {[%clk 0:00:44.9]} 37... h5
{[%clk 0:00:20.3]} 38. Reg3 {[%clk 0:00:36.5]} 38... Qd6 {[%clk 0:00:19.8]} 39.
Qh8 {[%clk 0:00:32]} 39... Qxf4 {[%clk 0:00:18.4]} 40. Qh7+ {[%clk 0:00:32.1]}
40... Kf6 {[%clk 0:00:18.1]} 41. Qxg6+ {[%clk 0:00:31.4]} 41... Ke7 {[%clk
0:00:17.6]} 42. Qg7+ {[%clk 0:00:20.1]} 42... Kd6 {[%clk 0:00:17.9]} 43. Kg2
{[%clk 0:00:19]} 43... Rf5 {[%clk 0:00:14.2]} 44. Rg6+ {[%clk 0:00:18.3]} 44...
Kc5 {[%clk 0:00:13.9]} 45. Qc3+ {[%clk 0:00:17.3]} 45... Kb5 {[%clk 0:00:13.5]}
46. a4+ {[%clk 0:00:13.7]} 46... Ka6 {[%clk 0:00:13.6]} 47. Qd4 {[%clk 0:00:14]}
47... Rg5+ {[%clk 0:00:08.5]} 48. Rxg5 {[%clk 0:00:13.9]} 48... Qxg5+ {[%clk
0:00:08.9]} 49. Rg3 {[%clk 0:00:14.3]} 49... Qf4 {[%clk 0:00:08.7]} 50. Qe3
{[%clk 0:00:13.6]} 50... Qe5 {[%clk 0:00:08.6]} 51. Rg5 {[%clk 0:00:13.3]} 51...
Qf6 {[%clk 0:00:08.1]} 52. Rxh5 {[%clk 0:00:12.7]} 52... Qg6+ {[%clk 0:00:08]}
53. Rg5 {[%clk 0:00:13]} 53... Qh7 {[%clk 0:00:07.7]} 54. Rg3 {[%clk 0:00:13.1]}
54... Qh5 {[%clk 0:00:07.7]} 55. Qf4 {[%clk 0:00:11.9]} 55... Be2 {[%clk
0:00:05.7]} 56. Qxe4 {[%clk 0:00:11.3]} 56... Bf1+ {[%clk 0:00:04.3]} 57. Kxf1
{[%clk 0:00:10.6]} 57... Qd1+ {[%clk 0:00:05.2]} 58. Kg2 {[%clk 0:00:11]} 58...
Qh5 {[%clk 0:00:05.2]} 59. Qc4+ {[%clk 0:00:10.7]} 59... Kb7 {[%clk 0:00:05.3]}
60. Rg7+ {[%clk 0:00:11.4]} 60... Kb8 {[%clk 0:00:04.8]} 61. Qg8+ {[%clk
0:00:11.6]} 1-0

[Event "Late-Titled-Tuesday-Blitz-May-28-2024"]
[Site "Chess.com"]
[Date "2024.05.28"]
[Round "3"]
[White "ccccvhhhj"]
[Black "terrortoast"]
[Result "0-1"]
[WhiteElo "2455"]
[BlackElo "2631"]
[TimeControl "180+1"]
[EndTime "14:29:45 PDT"]
[Termination "terrortoast won on time"]

1. e4 {[%clk 0:03:00.9]} 1... c6 {[%clk 0:03:00]} 2. d4 {[%clk 0:03:00.3]} 2...
d5 {[%clk 0:03:00.2]} 3. exd5 {[%clk 0:03:00.8]} 3... cxd5 {[%clk 0:03:01.1]} 4.
c4 {[%clk 0:03:01.6]} 4... Nf6 {[%clk 0:03:00.9]} 5. Nc3 {[%clk 0:03:02.1]} 5...
e6 {[%clk 0:03:01.5]} 6. Nf3 {[%clk 0:03:01.3]} 6... Bb4 {[%clk 0:03:01.4]} 7.
Bd3 {[%clk 0:03:00.6]} 7... dxc4 {[%clk 0:03:00.9]} 8. Bxc4 {[%clk 0:03:01.5]}
8... Qc7 {[%clk 0:03:01.2]} 9. Qa4+ {[%clk 0:02:47]} 9... Nc6 {[%clk 0:03:00.8]}
10. O-O {[%clk 0:02:46.8]} 10... O-O {[%clk 0:03:01]} 11. Bg5 {[%clk 0:02:36.5]}
11... Be7 {[%clk 0:02:38.2]} 12. Bd3 {[%clk 0:02:31.1]} 12... h6 {[%clk
0:02:37.6]} 13. Bh4 {[%clk 0:02:28.6]} 13... Bd7 {[%clk 0:02:37.8]} 14. Qd1
{[%clk 0:02:19]} 14... Nb4 {[%clk 0:02:37]} 15. Bb1 {[%clk 0:02:12.7]} 15... Bc6
{[%clk 0:02:28.7]} 16. a3 {[%clk 0:02:02.9]} 16... Nbd5 {[%clk 0:02:27.9]} 17.
Ne5 {[%clk 0:02:02]} 17... Rad8 {[%clk 0:02:15.5]} 18. Qc2 {[%clk 0:01:47.1]}
18... Nxc3 {[%clk 0:02:06.4]} 19. bxc3 {[%clk 0:01:28.1]} 19... Be4 {[%clk
0:02:05.3]} 20. Qb2 {[%clk 0:01:23.6]} 20... Bxb1 {[%clk 0:02:05]} 21. Raxb1
{[%clk 0:01:24.5]} 21... b6 {[%clk 0:02:02.8]} 22. Qb5 {[%clk 0:01:08.2]} 22...
Rd5 {[%clk 0:01:49.9]} 23. Qb3 {[%clk 0:00:51]} 23... Rc8 {[%clk 0:01:44.4]} 24.
Rbc1 {[%clk 0:00:47.4]} 24... Ra5 {[%clk 0:01:41.6]} 25. a4 {[%clk 0:00:42.7]}
25... Nd5 {[%clk 0:01:41.2]} 26. Bg3 {[%clk 0:00:36.7]} 26... Qb7 {[%clk
0:01:21.5]} 27. c4 {[%clk 0:00:32.7]} 27... Nf6 {[%clk 0:01:19.7]} 28. Rfe1
{[%clk 0:00:09.9]} 28... Qa6 {[%clk 0:01:15.7]} 29. Ra1 {[%clk 0:00:07.7]} 29...
Bd6 {[%clk 0:01:05.1]} 30. Rec1 {[%clk 0:00:08.1]} 30... Bxe5 {[%clk 0:01:02.9]}
31. Bxe5 {[%clk 0:00:09]} 31... Nd7 {[%clk 0:01:02.9]} 32. Bg3 {[%clk
0:00:06.4]} 32... Rf5 {[%clk 0:00:38.4]} 33. h3 {[%clk 0:00:06.3]} 33... Qa5
{[%clk 0:00:35.3]} 34. Rd1 {[%clk 0:00:05.4]} 34... Nf6 {[%clk 0:00:31.3]} 35.
Qd3 {[%clk 0:00:03.6]} 35... Qb4 {[%clk 0:00:30.2]} 36. Rac1 {[%clk 0:00:02.5]}
36... Qxa4 {[%clk 0:00:30.5]} 37. c5 {[%clk 0:00:03.2]} 37... bxc5 {[%clk
0:00:29]} 38. dxc5 {[%clk 0:00:04.1]} 38... Rfxc5 {[%clk 0:00:24.8]} 39. Rxc5
{[%clk 0:00:03.2]} 39... Rxc5 {[%clk 0:00:25.7]} 40. Qd8+ {[%clk 0:00:04]} 40...
Kh7 {[%clk 0:00:26.3]} 41. Bh4 {[%clk 0:00:03.4]} 41... Rd5 {[%clk 0:00:24.3]}
42. Rxd5 {[%clk 0:00:03.1]} 42... Nxd5 {[%clk 0:00:24.3]} 43. Bg3 {[%clk
0:00:01.2]} 43... a5 {[%clk 0:00:20.9]} 44. Kh2 {[%clk 0:00:01.6]} 44... Qb5
{[%clk 0:00:20.6]} 45. Qf8 {[%clk 0:00:02]} 45... Qb7 {[%clk 0:00:19.8]} 46. Be5
{[%clk 0:00:02.3]} 46... f6 {[%clk 0:00:19.5]} 47. Ba1 {[%clk 0:00:02.4]} 47...
a4 {[%clk 0:00:20]} 48. Qd6 {[%clk 0:00:03]} 48... Qc8 {[%clk 0:00:19.7]} 49.
Qa3 {[%clk 0:00:02.4]} 49... Qc7+ {[%clk 0:00:19.4]} 50. g3 {[%clk 0:00:02.2]}
50... Qd7 {[%clk 0:00:20.3]} 51. Qd3+ {[%clk 0:00:02.1]} 51... Kg8 {[%clk
0:00:19.3]} 52. Qe4 {[%clk 0:00:01.9]} 52... Kf7 {[%clk 0:00:18.9]} 53. Qc4
{[%clk 0:00:01.6]} 53... a3 {[%clk 0:00:13]} 54. Qb3 {[%clk 0:00:01.2]} 54...
Qa7 {[%clk 0:00:13]} 0-1

[Event "Late-Titled-Tuesday-Blitz-May-28-2024"]
[Site "Chess.com"]
[Date "2024.05.28"]
[Round "3"]
[White "Smiechu"]
[Black "TatjanaVasilevich"]
[Result "1-0"]
[WhiteElo "2456"]
[BlackElo "2587"]
[TimeControl "180+1"]
[EndTime "14:29:46 PDT"]
[Termination "Smiechu won on time"]

1. e4 {[%clk 0:03:00.9]} 1... c5 {[%clk 0:02:59.9]} 2. Nf3 {[%clk 0:03:00.4]}
2... Nc6 {[%clk 0:03:00]} 3. d4 {[%clk 0:03:00.8]} 3... cxd4 {[%clk 0:03:00.3]}
4. Nxd4 {[%clk 0:03:01.6]} 4... Nf6 {[%clk 0:03:00.7]} 5. Nc3 {[%clk 0:03:01.9]}
5... e6 {[%clk 0:03:00.7]} 6. a3 {[%clk 0:03:01.3]} 6... Qc7 {[%clk 0:03:00]} 7.
Be3 {[%clk 0:03:00.9]} 7... a6 {[%clk 0:03:00.2]} 8. Bd3 {[%clk 0:03:01.4]} 8...
b5 {[%clk 0:03:00.3]} 9. O-O {[%clk 0:03:01.6]} 9... Bb7 {[%clk 0:03:00.7]} 10.
f4 {[%clk 0:03:01.4]} 10... Bc5 {[%clk 0:03:00]} 11. Nce2 {[%clk 0:02:54.9]}
11... Ng4 {[%clk 0:02:58.2]} 12. Qd2 {[%clk 0:02:47.4]} 12... Nxe3 {[%clk
0:02:54.3]} 13. Qxe3 {[%clk 0:02:47.4]} 13... Nxd4 {[%clk 0:02:48.2]} 14. Nxd4
{[%clk 0:02:47]} 14... d6 {[%clk 0:02:48.7]} 15. Kh1 {[%clk 0:02:32.3]} 15... e5
{[%clk 0:02:38.1]} 16. fxe5 {[%clk 0:02:31.4]} 16... dxe5 {[%clk 0:02:38.2]} 17.
Nxb5 {[%clk 0:01:39.2]} 17... axb5 {[%clk 0:02:37]} 18. Bxb5+ {[%clk 0:01:39.3]}
18... Kf8 {[%clk 0:02:37.5]} 19. Qf3 {[%clk 0:01:36.3]} 19... Ba6 {[%clk
0:01:41.3]} 20. Bxa6 {[%clk 0:01:20.3]} 20... Rxa6 {[%clk 0:01:40.3]} 21. Rad1
{[%clk 0:01:03.7]} 21... Rf6 {[%clk 0:00:48.5]} 22. Qd3 {[%clk 0:01:03.4]} 22...
Rxf1+ {[%clk 0:00:37.9]} 23. Qxf1 {[%clk 0:01:03.1]} 23... Be7 {[%clk
0:00:32.3]} 24. c4 {[%clk 0:00:39.9]} 24... g6 {[%clk 0:00:31.8]} 25. b4 {[%clk
0:00:37.8]} 25... Kg7 {[%clk 0:00:31.8]} 26. h3 {[%clk 0:00:36.7]} 26... Ra8
{[%clk 0:00:29]} 27. Qf3 {[%clk 0:00:35.7]} 27... Qa7 {[%clk 0:00:25.8]} 28. Rf1
{[%clk 0:00:23.4]} 28... Bg5 {[%clk 0:00:23]} 29. a4 {[%clk 0:00:20.3]} 29...
Bd2 {[%clk 0:00:16.6]} 30. b5 {[%clk 0:00:17]} 30... Ba5 {[%clk 0:00:15.3]} 31.
Qf6+ {[%clk 0:00:16.5]} 31... Kg8 {[%clk 0:00:15]} 32. Qxe5 {[%clk 0:00:16.4]}
32... Rc8 {[%clk 0:00:15.1]} 33. Qd5 {[%clk 0:00:16.2]} 33... Rc5 {[%clk
0:00:14.5]} 34. Qd4 {[%clk 0:00:15]} 34... Bb6 {[%clk 0:00:14.9]} 35. a5 {[%clk
0:00:13.3]} 35... Qxa5 {[%clk 0:00:14.9]} 36. Qd7 {[%clk 0:00:11.5]} 36... Rc7
{[%clk 0:00:14.4]} 37. Qd8+ {[%clk 0:00:11.5]} 37... Kg7 {[%clk 0:00:14.7]} 38.
Qf6+ {[%clk 0:00:11]} 38... Kg8 {[%clk 0:00:15.2]} 39. Qd8+ {[%clk 0:00:10.6]}
39... Kg7 {[%clk 0:00:15.7]} 40. Qf6+ {[%clk 0:00:10.7]} 40... Kh6 {[%clk
0:00:16]} 41. e5 {[%clk 0:00:10.7]} 41... Qd2 {[%clk 0:00:15.5]} 42. Qxb6 {[%clk
0:00:05.8]} 42... Rxc4 {[%clk 0:00:14.9]} 43. Qf2 {[%clk 0:00:05.6]} 43... Qg5
{[%clk 0:00:12.3]} 44. Qxf7 {[%clk 0:00:03.8]} 44... Rc5 {[%clk 0:00:12.8]} 45.
Qf8+ {[%clk 0:00:03.8]} 45... Kh5 {[%clk 0:00:13.2]} 46. Qxc5 {[%clk 0:00:03.4]}
46... Qd2 {[%clk 0:00:13.4]} 47. Qf2 {[%clk 0:00:03.3]} 47... Qd3 {[%clk
0:00:13]} 48. Qf3+ {[%clk 0:00:03.6]} 48... Kh6 {[%clk 0:00:00.6]} 49. Qxd3
{[%clk 0:00:03]} 49... Kg7 {[%clk 0:00:00.9]} 50. Qd4 {[%clk 0:00:02.8]} 50...
h6 {[%clk 0:00:01.8]} 51. e6+ {[%clk 0:00:03.3]} 51... Kh7 {[%clk 0:00:01.7]}
52. e7 {[%clk 0:00:03.8]} 1-0

[Event "Late-Titled-Tuesday-Blitz-May-28-2024"]
[Site "Chess.com"]
[Date "2024.05.28"]
[Round "3"]
[White "Love7Unicorn"]
[Black "KejJaj"]
[Result "1-0"]
[WhiteElo "2536"]
[BlackElo "2132"]
[TimeControl "180+1"]
[EndTime "14:29:50 PDT"]
[Termination "Love7Unicorn won on time"]

1. d4 {[%clk 0:02:59.5]} 1... e6 {[%clk 0:02:58.8]} 2. c4 {[%clk 0:03:00.1]}
2... f5 {[%clk 0:02:59.1]} 3. g3 {[%clk 0:02:54.3]} 3... Nf6 {[%clk 0:02:59.4]}
4. Bg2 {[%clk 0:02:55]} 4... d5 {[%clk 0:02:59.7]} 5. Nf3 {[%clk 0:02:55]} 5...
c6 {[%clk 0:03:00.2]} 6. O-O {[%clk 0:02:55.9]} 6... Bd6 {[%clk 0:03:00.3]} 7.
Qc2 {[%clk 0:02:56.8]} 7... O-O {[%clk 0:02:56.5]} 8. Nc3 {[%clk 0:02:57.7]}
8... Qe7 {[%clk 0:02:49.8]} 9. Rb1 {[%clk 0:02:56.6]} 9... Nbd7 {[%clk
0:02:42.3]} 10. c5 {[%clk 0:02:49.3]} 10... Bc7 {[%clk 0:02:41.5]} 11. b4 {[%clk
0:02:49.9]} 11... a6 {[%clk 0:02:38.5]} 12. a4 {[%clk 0:02:47.1]} 12... e5
{[%clk 0:02:34.4]} 13. dxe5 {[%clk 0:02:31.7]} 13... Nxe5 {[%clk 0:02:35.3]} 14.
Nd4 {[%clk 0:02:21.8]} 14... Ne4 {[%clk 0:02:26.4]} 15. Qb3 {[%clk 0:01:53.7]}
15... Nc4 {[%clk 0:02:03.8]} 16. Rd1 {[%clk 0:01:14.4]} 16... Nxc3 {[%clk
0:01:53]} 17. Qxc3 {[%clk 0:01:12.6]} 17... f4 {[%clk 0:01:52.6]} 18. Rb3 {[%clk
0:01:01.4]} 18... fxg3 {[%clk 0:01:47.2]} 19. hxg3 {[%clk 0:01:02.3]} 19... Qf7
{[%clk 0:01:38]} 20. Rf1 {[%clk 0:00:58.8]} 20... Be5 {[%clk 0:01:31.6]} 21. Qd3
{[%clk 0:00:50.5]} 21... Bg4 {[%clk 0:01:27.3]} 22. Nf3 {[%clk 0:00:41.1]} 22...
Bc7 {[%clk 0:01:23.2]} 23. b5 {[%clk 0:00:33.7]} 23... axb5 {[%clk 0:01:22.3]}
24. axb5 {[%clk 0:00:34.2]} 24... Bf5 {[%clk 0:01:05.1]} 25. Qd4 {[%clk
0:00:29.4]} 25... Rae8 {[%clk 0:00:56.1]} 26. bxc6 {[%clk 0:00:28]} 26... bxc6
{[%clk 0:00:57]} 27. Rb7 {[%clk 0:00:18.5]} 27... Re7 {[%clk 0:00:54]} 28. Bg5
{[%clk 0:00:17.3]} 28... Rd7 {[%clk 0:00:53]} 29. Ra1 {[%clk 0:00:13.8]} 29...
h6 {[%clk 0:00:51.7]} 30. Bd2 {[%clk 0:00:10.9]} 30... Rfd8 {[%clk 0:00:43.4]}
31. Raa7 {[%clk 0:00:09.8]} 31... Bb8 {[%clk 0:00:41.6]} 32. Rxd7 {[%clk
0:00:08.7]} 32... Rxd7 {[%clk 0:00:40.2]} 33. Ra8 {[%clk 0:00:08.6]} 33... Rd8
{[%clk 0:00:40.1]} 34. Bf4 {[%clk 0:00:08.3]} 34... Qf8 {[%clk 0:00:38.5]} 35.
Bxb8 {[%clk 0:00:04.6]} 35... Rxb8 {[%clk 0:00:38.1]} 36. Rxb8 {[%clk
0:00:05.1]} 36... Qxb8 {[%clk 0:00:38.8]} 37. Nd2 {[%clk 0:00:04.8]} 37... Nxd2
{[%clk 0:00:37.3]} 38. Qxd2 {[%clk 0:00:05.7]} 38... Qb5 {[%clk 0:00:34]} 39.
Bxd5+ {[%clk 0:00:05.6]} 39... Kh7 {[%clk 0:00:30.1]} 40. Bf3 {[%clk 0:00:03.1]}
40... Qxc5 {[%clk 0:00:29.9]} 41. Kg2 {[%clk 0:00:03.5]} 41... Qb6 {[%clk
0:00:26.7]} 42. Qf4 {[%clk 0:00:03.8]} 42... Bg6 {[%clk 0:00:24.8]} 43. Qd6
{[%clk 0:00:03.5]} 43... Qb5 {[%clk 0:00:17]} 44. Qxc6 {[%clk 0:00:03.4]} 44...
Qg5 {[%clk 0:00:16.5]} 45. Qe6 {[%clk 0:00:02.7]} 45... h5 {[%clk 0:00:16.3]}
46. Qc4 {[%clk 0:00:02.3]} 46... Kh6 {[%clk 0:00:14.4]} 47. Qh4 {[%clk
0:00:01.6]} 47... Qxh4 {[%clk 0:00:12.1]} 48. gxh4 {[%clk 0:00:02.5]} 48... Bf5
{[%clk 0:00:12.2]} 49. Kg3 {[%clk 0:00:03]} 49... Kg6 {[%clk 0:00:10.2]} 50. Kf4
{[%clk 0:00:03.5]} 50... Be6 {[%clk 0:00:09.8]} 51. e4 {[%clk 0:00:04]} 51...
Kh6 {[%clk 0:00:07.8]} 52. Ke5 {[%clk 0:00:04.3]} 52... Bg4 {[%clk 0:00:07.4]}
53. Bxg4 {[%clk 0:00:04.5]} 53... hxg4 {[%clk 0:00:07.7]} 54. Kf4 {[%clk
0:00:05.2]} 54... Kh5 {[%clk 0:00:07.6]} 55. Kg3 {[%clk 0:00:05.7]} 55... g5
{[%clk 0:00:06.3]} 56. hxg5 {[%clk 0:00:05]} 56... Kxg5 {[%clk 0:00:06.6]} 57.
e5 {[%clk 0:00:04.6]} 57... Kf5 {[%clk 0:00:06.6]} 58. e6 {[%clk 0:00:04.9]}
58... Kxe6 {[%clk 0:00:06.7]} 59. Kxg4 {[%clk 0:00:05.6]} 59... Ke7 {[%clk
0:00:02.4]} 60. Kg5 {[%clk 0:00:05.4]} 1-0